Workbook

Sheet Welcome
B2: Welcome to Residential Investment Search!
B4: Step 1 | C4: Select the "Real Estate" Tab.
B5: Step 2 | C5: Select "Zip Code" button and insert desired Zip Code for searching into text box.
B6: Step 3 | C6: Use buttons within "Sort Homes" to navigate through the results.
B7: Step 4 | C7: Use the "County" button to search rentals within the area.
B8: Step 5 | C8: Select the "Select Property" button within the calculate grouping to input selected property data.
B9: Step 6 | C9: Select "Calculate IRR" to see the results.
B11: Thank you and make it a GREAT day!

Sheet Financial Analysis
B2: Financial Analysis | J2: =B59 -> Investment Measures
B3: Inputs | J3: First Year Measures
B4: Purchase Price | C4: =D4 -> 175000 | D4: 175000 | J4: Payback Period (years) | K4: =C61 -> 10.48259789
B5: Land Value | C5: =0.3*C4 -> 52500 | J5: Profit Margin | K5: 0.2019883232
B6: Improvement Value | C6: =C4-C5 -> 122500 | J6: Default or Breakeven Ratio | K6: 0
J7: Operating Expense Ratio | K7: 0.3
B8: Investors Criteria and Contribution | J8: Debt Coverage Ratio | K8: 1.53000526
B9: Initial Equity Investment | C9: =D9 -> 35000 | D9: 35000 | J9: Loan to Value Ratio | K9: 0.8
B10: Investors Required Rate of Return | C10: 0.12 | J10: Effective Gross Income Multiplier | K10: 10.58681186
J11: Capitalization Rate | K11: 0.06612
B12: Financing Information | J12: Before Tax Cash on Cash Return | K12: 0.1145223114
B13: Mortgage Amount | C13: =C4-C9 -> 140000 | J13: After Tax Cash on Cash Return | K13: 0.09539619952
B14: Financing Term (Years) | C14: 30
B15: No. of Payment Per Year | C15: 12 | J15: Holding Period Measures
B16: Annual Mortgage Interest Rate | C16: 0.0352 | D16: 3.52 | J16: Net Present Value | K16: 2576.099583
B17: Private Mortgage Insurance (yearly) | C17: 0 | J17: Internal Rate of Return | K17: 0.1388862433
B19: Tax Information
B20: Depreciable Life (27.5 Res 39 Comm) | C20: 27.5
B21: Marginal Income Tax Rate | C21: 0.3
B22: Capital Gains Tax Rate | C22: 0.2
B23: Recapture Tax Rate | C23: 0.25
B24: Investor's Modified Adjusted Gross Inc. | C24: 100000
B25: Investor's Participation, Active? Y/N | C25: y
B27: Forecast Operating Data
B28: First Year forecast PGI | C28: =D28*12 -> 17400 | D28: 1450 | E28: monthly rental assumption
B29: Annual Growth in PGI | C29: =D29 -> 2% | D29: 2%
B30: % Annual Vacancy | C30: =D30 -> 0.05 | D30: 0.05
B31: % Operating Expenses of EFI | C31: 0.3
B33: Future Sales Information
B34: Forecast Future Sales Price | C34: =C4*(1+D34) -> 183750 | D34: 5% | E34: appreciation assumption
B35: Future Selling Expenses | C35: 0.05
C37: 0 | D37: 1 | E37: 2 | F37: 3 | G37: 4 | H37: 5 | J37: Termination (Reversion) Statement
B38: Potential Gross Income | D38: =C28 -> 17400 | E38: =D38*(1+$C$29) -> 17748 | F38: =E38*(1+$C$29) -> 18102.96 | G38: 18465.0192 | H38: 18834.31958 | J38: Gross Future Sales Price | K38: =C34 -> 183750
B39: Less Vacancy & Collection Loss | D39: =-D38*$C$30 -> -870 | E39: =-E38*$C$30 -> -887.4 | F39: -905.148 | G39: -923.25096 | H39: -941.7159792 | J39: Less Selling Expenses | K39: =-K38*C35 -> -9187.5
B40: Plus Other Income | D40: 0 | E40: 0 | F40: 0 | G40: 0 | H40: 0 | J40: Net Sales Proceeds | K40: =K38+K39 -> 174562.5
B41: Effective Gross Income | D41: =SUM(D38:D40) -> 16530 | E41: =SUM(E38:E40) -> 16860.6 | F41: 17197.812 | G41: 17541.76824 | H41: 17892.6036 | J41: Less Mortgage Balance | K41: =PV(C16/12,(C14-H37)*C15,D45/12,0) -> 125619.0077
B42: LessOperating Expenses | D42: =-D41*$C$31 -> -4959 | E42: =-E41*$C$31 -> -5058.18 | F42: -5159.3436 | G42: -5262.530472 | H42: -5367.781081 | J42: Before Tax Cash on Sale | K42: =K40-K41 -> 48943.49226
B43: Net Operating Income | D43: =D41+D42 -> 11571 | E43: =E41+E42 -> 11802.42 | F43: 12038.4684 | G43: 12279.23777 | H43: 12524.82252
B44: Less Private Mortage Insurance | D44: =-C17 -> 0 | E44: =-D17 -> 0 | F44: 0 | G44: 0 | H44: 0 | J44: Net Sales Proceeds | K44: =K40 -> 174562.5
B45: Less Annualized Mortgage Payments | D45: =-PMT(C16/C15,C14*C15,-C13,0)*12 -> -7562.719099 | E45: =D45 -> -7562.719099 | F45: =E45 -> -7562.719099 | G45: -7562.719099 | H45: -7562.719099 | J45: Less Cost Basis | K45: =-C4 -> -175000
B46: Before Tax Cash Flows | D46: =D43+D45 -> 4008.280901 | E46: =E43+E45 -> 4239.700901 | F46: 4475.749301 | G46: 4716.518669 | H46: 4962.103424 | J46: Capital Gain (Economic Gain) | K46: =K44+K45 -> -437.5
B47: Less Annual Depreciation | D47: =-$C$6/$C$20 -> -4454.545455 | E47: =-$C$6/$C$20 -> -4454.545455 | F47: -4454.545455 | G47: -4454.545455 | H47: -4454.545455 | J47: X Capital Gains Rate | K47: =C22 -> 0.2
B48: Plus Annual Principal Paid | D48: =-CUMPRINC($C$16/$C$15,$C$14*$C$15,$C$13,D37,D37*C15,0) -> 2677.644279 | E48: =-CUMPRINC($C$16/$C$15,$C$14*$C$15,$C$13,D37*C15+1,E37*C15,0) -> 2773.432941 | F48: =-CUMPRINC($C$16/$C$15,$C$14*$C$15,$C$13,E37*$C$15+1,F37*$C$15,0) -> 2872.648296 | G48: =-CUMPRINC($C$16/$C$15,$C$14*$C$15,$C$13,F37*$C$15+1,G37*$C$15,0) -> 2975.412931 | H48: 3081.853815 | J48: Capital Gains Taxes | K48: =IF(K46<=0,0,K46*K47) -> 0
B49: Taxable Income | D49: =SUM(D46:D48) -> 2231.379725 | E49: =SUM(E46:E48) -> 2558.588387 | F49: 2893.852143 | G49: 3237.386145 | H49: 3589.411784
B50: Less Taxes from BTCF | D50: =-D49*$C$21 -> -669.4139175 | E50: =-E49*$C$21 -> -767.576516 | F50: -868.1556428 | G50: -971.2158436 | H50: -1076.823535 | J50: Accumulated Depreciation | K50: =-SUM(D47:H47) -> 22272.72727
B51: Savings from Passive Actitivity Loss | D51: 0 | E51: 0 | F51: 0 | G51: 0 | H51: 0 | J51: X Recapture Tax Rate | K51: =C23 -> 0.25
B52: After-tax Cash Flow from Operations | D52: =D46+D50 -> 3338.866983 | E52: =E46+E50 -> 3472.124385 | F52: 3607.593658 | G52: 3745.302825 | H52: 3885.279889 | J52: Recapture Taxes | K52: =IF(K46>0,K50*K51,MAX((K50+K46)*K51,0)) -> 5458.806818
B53: Initial Equity Investment | C53: =-C9 -> -35000
B54: After-tax Cash on Sale | H54: =K57 -> 43484.68544 | J54: Before Tax Cash on Sale | K54: =K42 -> 48943.49226
B55: Total After-tax Cash Flow | C55: =SUM(C52:C54) -> -35000 | D55: =SUM(D52:D54) -> 3338.866983 | E55: =SUM(E52:E54) -> 3472.124385 | F55: 3607.593658 | G55: 3745.302825 | H55: 47369.96533 | J55: Less Capital Gains Taxes | K55: =-K48 -> 0
J56: Less Recapture Taxes | K56: =-K52 -> -5458.806818
J57: After Tax Cash on Sale | K57: =SUM(K54:K56) -> 43484.68544
B59: Investment Measures
B60: First Year Measures
B61: Payback Period (years) | C61: =C9/D55 -> 10.48259789
B62: Profit Margin | C62: =D55/D41 -> 0.2019883232
B63: Default or Breakeven Ratio | C63: =(D42=D45)/D41 -> 0
B64: Operating Expense Ratio | C64: =-D42/D41 -> 0.3
B65: Debt Coverage Ratio | C65: =-D43/D45 -> 1.53000526
B66: Loan to Value Ratio | C66: =C13/C4 -> 0.8
B67: Effective Gross Income Multiplier | C67: =C4/D41 -> 10.58681186
B68: Capitalization Rate | C68: =D43/C4 -> 0.06612
B69: Before Tax Cash on Cash Return | C69: =-D46/C55 -> 0.1145223114
B70: After Tax Cash on Cash Return | C70: =-D55/C55 -> 0.09539619952
B72: Holding Period Measures
B73: Net Present Value | C73: =NPV(C10,D55:H55)+C55 -> 2576.099583
B74: Internal Rate of Return | C74: =IRR(C55:H55) -> 0.1388862433

Sheet 84604 search
A1: 84604
A2: Address | B2: Asking Price | C2: Zestimate® | D2: Est. Mortgage PMT | E2: # Beds | F2: # Baths | G2: Sqft | H2: Lot Footage | I2: Days on Market | J2: Year Built | K2: Type
A3: 4540 N Foothill Dr, Provo, UT | B3: 109000 | C3: 97185 | D3: $471/mo | E3: -- | F3: -- | G3: -- | H3: -- | I3: 33 | J3: -- | K3: Single Family
A4: 740 E 2320 N, Provo, UT | B4: 158000 | C4: 140806 | D4: $683/mo | E4: 2 | F4: 1 | G4: 2064 | H4: -- | I4: 27 | J4: 1938 | K4: Single Family
A5: 669 W 1850 N, Provo, UT | B5: 168000 | C5: 173094 | D5: $726/mo | E5: 4 | F5: 2 | G5: 1957 | H5: 7840 | I5: 22 | J5: 1956 | K5: Single Family
A6: 287 E 4640 N, Provo, UT | B6: 179000 | C6: 200364 | D6: $778/mo | E6: 3 | F6: 3 | G6: 2950 | H6: -- | I6: 33 | J6: 1982 | K6: Single Family
A7: 2208 N 800 W, Provo, UT | B7: 194000 | C7: 165049 | D7: $843/mo | E7: 4 | F7: 2 | G7: 1978 | H7: 12632 | I7: 7 | J7: 1981 | K7: Single Family
A8: 2983 N 600 E, Provo, UT | B8: 216000 | C8: 271539 | D8: $938/mo | E8: 5 | F8: 3 | G8: 3146 | H8: 10018 | I8: 35 | J8: 1996 | K8: Single Family
A9: 780 E 2730 N, Provo, UT | B9: 279000 | C9: 200944 | D9: $1,210/mo | E9: 5 | F9: 3 | G9: 2688 | H9: -- | I9: 27 | J9: 1968 | K9: Single Family
A10: 107 Village Ln, Provo, UT | B10: 305000 | C10: 212925 | D10: $1,323/mo | E10: 3 | F10: 4 | G10: 2666 | H10: -- | I10: 35 | J10: 2002 | K10: Single Family
A11: 1450 E 1300 N, Provo, UT | B11: 320000 | C11: 300758 | D11: $1,384/mo | E11: -- | F11: -- | G11: -- | H11: 149846 | I11: 31 | J11: -- | K11: Single Family
A12: 1489 W 1500 North N St, Provo, UT | B12: 335000 | C12: 290758 | D12: $1,448/mo | E12: 5 | F12: 2.5 | G12: 3651 | H12: -- | I12: 31 | J12: 1980 | K12: Single Family
A13: 1290 Maple Ln, Provo, UT | B13: 375000 | C13: 306185 | D13: $1,621/mo | E13: 7 | F13: 4 | G13: 3597 | H13: -- | I13: 35 | J13: 1973 | K13: Single Family
A14: 2954 E Meadows Dr, Sundance, UT | B14: 579000 | C14: 276696 | D14: $2,503/mo | E14: -- | F14: -- | G14: -- | H14: 53143 | I14: 24 | J14: -- | K14: Single Family
A15: 1012 Waterford Ln, Provo, UT | B15: 629000 | C15: 456174 | D15: $2,720/mo | E15: 3 | F15: 3.5 | G15: 3769 | H15: 3049 | I15: 24 | J15: 2006 | K15: Single Family
A16: 254 Stone Gate Ln, Provo, UT | B16: 1700000 | C16: 515194 | D16: $7,350/mo | E16: 5 | F16: 4.5 | G16: 5594 | H16: 49222 | I16: 32 | J16: 2004 | K16: Single Family

Sheet WebQuery
A1: 84604
A2: Skip to content
A3: Zillow Real Estate
A4: Homes
A6: 84604 Homes For Sale
A7: 84604 For Sale By Owner
A8: 84604 Foreclosures
A9: 84604 Open Houses
A10: 84604 New Homes
A11: 84604 Recent Home Sales
A12: Provo Homes For Sale
A13: Provo For Sale By Owner
A14: Provo Foreclosures
A15: Provo Open Houses
A16: Provo New Homes
A17: Provo Recent Home Sales
A18: Provo Most Expensive Homes
A20: Post a Home For Free
A21: For Sale by Owner
A22: For Sale by Agent
A23: Make Me Move
A24: Rentals
A26: 84604 Apartments For Rent
A27: 84604 Houses For Rent
A28: Provo Apartments For Rent
A29: Provo Houses For Rent
A30: Provo Most Expensive Rentals
A32: Tools
A33: Post a Rental For Free
A34: Mortgage Rates
A36: Provo Mortgage Rates
A37: Utah Mortgage Rates
A38: Provo Refinance
A39: Utah Refinance
A41: Calculators
A42: Mortgage Calculator
A43: Refinance Calculator
A44: Affordability Calculator
A46: Popular
A47: FHA Loan
A48: Refinance
A49: Home Equity Loan
A51: Tools
A52: Get Custom Quotes
A53: Lender Signup
A54: Help Center
A55: Advice
A57: Real Estate Advice
A58: Zillow FAQs
A59: Home Buying Advice
A60: Home Selling Advice
A61: Mortgage Advice
A62: Rental Advice
A63: Foreclosure Center
A65: Tools
A66: Ask a Question
A67: Find a Pro
A69: Find a Real Estate Professional
A70: Provo Real Estate Agents
A71: Provo Mortgage Lenders
A72: Provo Property Managers
A73: Provo Home Improvement Pros
A74: Review an Agent, Lender or Pro
A76: Marketing on Zillow
A77: Real Estate Agent Advertising
A78: Join the Professional Directory
A79: Local Info
A81: Provo Overview
A82: Provo Home Prices & Values
A83: Provo Demographics
A84: Provo Photos
A85: Provo Schools
A86: Provo Homes
A87: Utah Home Prices & Values
A89: Popular
A90: Real Estate Market Reports
A91: Compare Places
A92: Blogs
A94: Zillow Blog
A95: Zillow Pros Blog
A96: Zillow Research
A97: Zillow Engineering
A98: More ▼
A100: What Zillow Offers
A101: Dueling Digs
A102: Real Estate Advertising
A103: Widgets, Badges & Data
A104: Zillow Visuals
A105: Help
A107: For Pros ▼
A109: Agents
A110: Rental Pro
A111: Mobile
A112: Sign In
A113: Find home values and listings Search
A114: Show:
A115: Filter Save Search
A118: For Sale
A120: By Agent
A121: By Owner
A122: New Homes
A123: Foreclosures
A125: These properties are currently listed for sale. They are owned by a bank or a lender who took ownership through foreclosure proceedings. These are also known as bank-owned or real estate owned (REO).
A126: Monthly Payment
A127: What's this?
A128: Close
A130: What Does Monthly Payment Mean?
A131: Enter a price range and the monthly payment shown will apply to for-sale or for-rent listings, if both filters are selected. Or, enter a monthly payment range (e.g., $1,500-$2,000) to see available rentals or homes for sale in that price range. Monthly payment is calculated from using current Zillow Mortgage Marketplace quotes for 30-year fixed rate at 3.20%, with 20% down and includes principal and interest.
A133: Go
A134: Pre-Market
A135: Properties that may be coming to the market soon.
A137: Foreclosed
A138: Pre-Foreclosure
A140: The lender initiated foreclosure proceedings on these properties because the owners were in default on their loan obligations. Pre-foreclosures also include properties for which a foreclosure auction is scheduled.
A141: FREE account required
A142: Make Me Move
A143: For Rent
A144: Recently Sold
A145: Home type
A147: Single Family
A148: Condo/Apartment
A149: Multi Family
A150: Manufactured
A151: Lots/Land
A152: Show only
A154: Open Houses only
A155: Pets Allowed
A156: On-Site Parking
A157: In-Unit Laundry
A158: Close
A159: Price
A161: Go
A162: Rent
A164: Go
A165: Beds
A166: Baths
A167: Square Feet
A169: Go
A170: Lot Size
A172: Go
A173: Year Built
A175: Go
A176: Days on/Sold in last
A177: Keywords
A178: Apply
A179: ▾ more filters
A180: Save this search and be notified when new listings are added.
A182: A Rent Zestimate® is Zillow's estimated monthly rental price, computed using a proprietary formula. It is a starting point in determining the monthly rental price for a specific property. Learn more | Post a home for rent for FREE
A184: A Zestimate® home valuation is Zillow's estimated market value. It is not an appraisal. Use it as a starting point to determine a home's value. Learn more | Post a home for sale for FREE
A186: Make Me Move is a free and easy way to tell others the price you'd be willing to sell your home for.
A188: This property is scheduled to be sold at a foreclosure auction. Learn more
A190: The lender initiated foreclosure proceedings on these properties because the owners were in default on their loan obligations.
A192: These properties are owned by a bank or a lender who took ownership through foreclosure proceedings. They may soon be listed for sale.
A194: A Foreclosure Estimate is the price Zillow predicts a property will sell for if it's listed as a foreclosure (bank-owned property or real estate owned). Learn more
A195: 84604
A196: Sort: Featured ▾
A198: Featured
A199: Days on Zillow
A200: Price (Low to High)
A201: Price (High to Low)
A202: Bedrooms
A203: Bathrooms
A204: Living Area
A205: Year Built
A206: Lot Area
A207: Zestimate (High to Low)
A208: Zestimate (Low to High)
A209: Loading results...
A210: 2208 N 800 W, Provo, UT
A211: 11 Photos
A212: 2208 N 800 W, Provo, UT
A214: House For Sale:$194,900
A215: Zestimate®: $165,049
A216: Est. Mortgage: $843/mo
A218: See current rates
A220: Beds: 4
A221: Baths: 2.0
A222: Sqft: 1,978
A223: Lot: 12,632
A224: Days on Zillow: 7
A225: Built: 1981
A226: Single Family
A227: RE/MAX Results-Provo
A229: Maps
A230: Save
A231: Comps
A232: 164 W Stone Gate Ln N, Provo, UT
A233: 7 Photos
A234: 164 W Stone Gate Ln N, Provo, UT
A236: Lot/Land For Sale:$224,900
A237: Price Cut: $24,100(Nov 22)
A238: Zestimate®: --
A239: Est. Mortgage: $972/mo
A241: Beds: --
A242: Baths: --
A243: Sqft: --
A244: Lot: 24,829
A245: Days on Zillow: 17
A246: Built: --
A247: Vacant Land
... 483 more rows

Sheet Utah County search
A1: Utah
A2: Address | B2: Rent $ | C2: Rent Zestimate® | D2: # Beds | E2: # Baths | F2: Sqft | G2: Lot Footage | H2: Days on Market | I2: Year Built | J2: Type
A3: 383 N 400 W, Provo, UT | B3: 750 | C3: $915/mo | D3: 2 | E3: 1 | F3: 1100 | G3: 3484 | H3: 4 | I3: 1927 | J3: Single Family
A4: 283 S 1050 W APT 93, Provo, UT | B4: 950 | C4: $848/mo | D4: 3 | E4: 2 | F4: 1185 | G4: 43560 | H4: 1 | I4: 1997 | J4: Condo
A5: 1401 Sandhill Rd # 12522653, Orem, UT | B5: 970 | C5: -- | D5: 2 | E5: 2 | F5: 1072 | G5: -- | H5: 3 | I5: -- | J5: Apartment
A6: 1401 Sandhill Rd # 12522655, Orem, UT | B6: 970 | C6: -- | D6: 2 | E6: 2 | F6: 1017 | G6: -- | H6: 3 | I6: -- | J6: Apartment
A7: 929 W 670 S UNIT 9, Pleasant Grove, UT | B7: 1195 | C7: $1,032/mo | D7: 3 | E7: 2 | F7: 1306 | G7: 1306 | H7: 5 | I7: 2004 | J7: Condo
A8: 184 Woodland Dr, Orem, UT | B8: 1250 | C8: $1,245/mo | D8: 4 | E8: 1.25 | F8: 1609 | G8: 9147 | H8: 3 | I8: 1965 | J8: Single Family
A9: 396 E 1010 S, Orem, UT | B9: 1295 | C9: $884/mo | D9: 4 | E9: 1 | F9: 1500 | G9: 6534 | H9: 5 | I9: 1943 | J9: Single Family
A10: 626 N 550 E, American Fork, UT | B10: 1300 | C10: $1,394/mo | D10: 4 | E10: 2 | F10: 2368 | G10: -- | H10: 2 | I10: 1985 | J10: Single Family
A11: 1494 Venetian Way, Saratoga Springs, UT | B11: 1300 | C11: $1,220/mo | D11: 3 | E11: 2.5 | F11: 2214 | G11: 871 | H11: 5 | I11: 2009 | J11: Townhouse
A12: 100 Teal Rd, Saratoga Springs, UT | B12: 1395 | C12: $1,786/mo | D12: 4 | E12: 3 | F12: 4114 | G12: 12632 | H12: 1 | I12: 1998 | J12: Single Family
A13: 7363 Aspen Way, Eagle Mountain, UT | B13: 1450 | C13: $1,456/mo | D13: 5 | E13: 2 | F13: 2127 | G13: 5662 | H13: 5 | I13: 2006 | J13: Single Family
A14: 10435 Sugarloaf Dr, Cedar Hills, UT | B14: 1500 | C14: $1,496/mo | D14: 5 | E14: 3 | F14: 2900 | G14: 5662 | H14: 3 | I14: 2003 | J14: Single Family
A15: 1855 Stadium Cir, Provo, UT | B15: 1650 | C15: $1,599/mo | D15: 5 | E15: 3 | F15: 2688 | G15: 10018 | H15: 3 | I15: 1965 | J15: Single Family
A16: 1929 W Golden Pond Way, Orem, UT | B16: 1795 | C16: $1,283/mo | D16: 4 | E16: 3 | F16: 3512 | G16: 2178 | H16: 5 | I16: 2005 | J16: Single Family
A17: 397 N Willow H Avenue N Ave, Lehi, UT | B17: 3400 | C17: -- | D17: 7 | E17: 5 | F17: 2600 | G17: -- | H17: 3 | I17: -- | J17: Single Family

Sheet WebQueryRents
A1: Utah
A2: Skip to content
A3: Zillow Real Estate
A4: Homes
A6: Utah Homes For Sale
A7: Utah For Sale By Owner
A8: Utah Foreclosures
A9: Utah Open Houses
A10: Utah New Homes
A11: Utah Recent Home Sales
A12: Utah Most Expensive Homes
A14: Post a Home For Free
A15: For Sale by Owner
A16: For Sale by Agent
A17: Make Me Move
A18: Rentals
A20: Utah Apartments For Rent
A21: Utah Houses For Rent
A22: Utah Most Expensive Rentals
A24: Tools
A25: Post a Rental For Free
A26: Mortgage Rates
A28: Utah Mortgage Rates
A29: Utah Refinance
A31: Calculators
A32: Mortgage Calculator
A33: Refinance Calculator
A34: Affordability Calculator
A36: Popular
A37: FHA Loan
A38: Refinance
A39: Home Equity Loan
A41: Tools
A42: Get Custom Quotes
A43: Lender Signup
A44: Help Center
A45: Advice
A47: Real Estate Advice
A48: Zillow FAQs
A49: Home Buying Advice
A50: Home Selling Advice
A51: Mortgage Advice
A52: Rental Advice
A53: Foreclosure Center
A55: Tools
A56: Ask a Question
A57: Find a Pro
A59: Find a Real Estate Professional
A60: Utah Real Estate Agents
A61: Utah Mortgage Lenders
A62: Utah Property Managers
A63: Utah Home Improvement Pros
A64: Review an Agent, Lender or Pro
A66: Marketing on Zillow
A67: Real Estate Agent Advertising
A68: Join the Professional Directory
A69: Local Info
A71: Utah Home Prices & Values
A73: Popular
A74: Real Estate Market Reports
A75: Compare Places
A76: Blogs
A78: Zillow Blog
A79: Zillow Pros Blog
A80: Zillow Research
A81: Zillow Engineering
A82: More ▼
A84: What Zillow Offers
A85: Dueling Digs
A86: Real Estate Advertising
A87: Widgets, Badges & Data
A88: Zillow Visuals
A89: Help
A91: For Pros ▼
A93: Agents
A94: Rental Pro
A95: Mobile
A96: Sign In
A97: Find home values and listings Search
A98: Show:
A99: Filter Save Search
A102: For Sale
A104: By Agent
A105: By Owner
A106: New Homes
A107: Foreclosures
A109: These properties are currently listed for sale. They are owned by a bank or a lender who took ownership through foreclosure proceedings. These are also known as bank-owned or real estate owned (REO).
A110: Monthly Payment
A111: What's this?
A112: Close
A114: What Does Monthly Payment Mean?
A115: Enter a price range and the monthly payment shown will apply to for-sale or for-rent listings, if both filters are selected. Or, enter a monthly payment range (e.g., $1,500-$2,000) to see available rentals or homes for sale in that price range. Monthly payment is calculated from using current Zillow Mortgage Marketplace quotes for 30-year fixed rate at 3.20%, with 20% down and includes principal and interest.
A117: Go
A118: Pre-Market
A119: Properties that may be coming to the market soon.
A121: Foreclosed
A122: Pre-Foreclosure
A124: The lender initiated foreclosure proceedings on these properties because the owners were in default on their loan obligations. Pre-foreclosures also include properties for which a foreclosure auction is scheduled.
A125: FREE account required
A126: Make Me Move
A127: For Rent
A128: Recently Sold
A129: Home type
A131: Single Family
A132: Condo/Apartment
A133: Multi Family
A134: Manufactured
A135: Lots/Land
A136: Show only
A138: Open Houses only
A139: Pets Allowed
A140: On-Site Parking
A141: In-Unit Laundry
A142: Close
A143: Price
A145: Go
A146: Rent
A148: Go
A149: Beds
A150: Baths
A151: Square Feet
A153: Go
A154: Lot Size
A156: Go
A157: Year Built
A159: Go
A160: Days on/Sold in last
A161: Keywords
A162: Apply
A163: ▾ more filters
A164: Save this search and be notified when new listings are added.
A166: A Rent Zestimate® is Zillow's estimated monthly rental price, computed using a proprietary formula. It is a starting point in determining the monthly rental price for a specific property. Learn more | Post a home for rent for FREE
A168: A Zestimate® home valuation is Zillow's estimated market value. It is not an appraisal. Use it as a starting point to determine a home's value. Learn more | Post a home for sale for FREE
A170: Make Me Move is a free and easy way to tell others the price you'd be willing to sell your home for.
A172: This property is scheduled to be sold at a foreclosure auction. Learn more
A174: The lender initiated foreclosure proceedings on these properties because the owners were in default on their loan obligations.
A176: These properties are owned by a bank or a lender who took ownership through foreclosure proceedings. They may soon be listed for sale.
A178: A Foreclosure Estimate is the price Zillow predicts a property will sell for if it's listed as a foreclosure (bank-owned property or real estate owned). Learn more
A179: Utah County
A180: Sort: Days on Zillow ▾
A182: Featured
A183: Days on Zillow
A184: Rent (low to high)
A185: Rent (high to low)
A186: Bedrooms
A187: Bathrooms
A188: Living Area
A189: Year Built
A190: Lot Area
A191: Zestimate (High to Low)
A192: Zestimate (Low to High)
A193: Loading results...
A194: 283 S 1050 W APT 93, Provo, UT
A195: 1 Photo
A196: 283 S 1050 W APT 93, Provo, UT
A198: Condo For Rent:$950/mo
A199: Rent Zestimate®: $848/mo
A200: Pets: No
A201: Availability: now
A203: Beds: 3
A204: Baths: 2.0
A205: Sqft: 1,185
A206: Lot: 43,560
A207: Days on Zillow: 1
A208: Built: 1997
A209: Condo
A211: Maps
A212: Save
A213: 100 Teal Rd, Saratoga Springs, UT
A214: 29 Photos
A215: 100 Teal Rd, Saratoga Springs, UT
A217: House For Rent:$1,395/mo
A218: Rent Zestimate®: $1,786/mo
A219: Pets: No
A220: Availability: now
A222: Beds: 4
A223: Baths: 3.0
A224: Sqft: 4,114
A225: Lot: 12,632
A226: Days on Zillow: 1
A227: Built: 1998
A228: Single Family
A230: Maps
A231: Save
A232: 626 N 550 E, American Fork, UT
A233: 18 Photos
A234: 626 N 550 E, American Fork, UT
A236: House For Rent:$1,300/mo
A237: Rent Zestimate®: $1,394/mo
A238: Pets: --
A239: Availability: now
A241: Beds: 4
A242: Baths: 2.0
A243: Sqft: 2,368
A244: Lot: --
A245: Days on Zillow: 2
A246: Built: 1985
A247: Single Family
A249: Maps
A250: Save
... 400 more rows

Sheet WebQueryIntRate
A2: Mortgage calculator | Mortgage rates
A3: Bookmark this pageBookmark this page
A4: Follow Us: Google+
A6: Bankrate.com
A7: Search Bankrate.com
A8: Search
A9: bankrate cobrand
A10: Home
A11: Compare Rates
A12: Calculators
A13: News
A14: The Lighter Side
A15: Blogs
A16: Mortgage
A17: Refinance
A18: Home
A19: Equity
A20: CDs
A21: Investment
A22: Checking &
A23: Savings
A24: Auto
A25: Credit
A26: Cards
A27: Debt
A28: Management
A29: Insurance
A30: College
A31: Finance
A32: Retirement
A33: Taxes
A34: Find ratesDown arrow
A35: Mortgage
A36: Home Equity
A37: 100 Highest CD yields
A38: 100 Highest MMAs
A39: Credit Cards
A40: Auto
A41: Checking
A42: Insurance
A43: College Finance
A44: Personal Loans
A45: Credit Unions
A46: advertisement
A47: PrintSubscribe
A48: mortgage
A49: Current Mortgage Interest Rates
A50: By Bankrate.com
A51: Current Interest Rates
A52: MortgagesCDsAuto LoansHome EquityCredit Cards
A53: 3 month mortgage trends
A54: Mortgage rate graph
A55: Find the best mortgage rates in your area.
A56: Add this graph to your pageâ¹âºget code
A57: Add to website or blog X
A58: Select All . Press Ctrl + C to copyClose
A59: Mortgage Rates | B59: 30 yr fixed | C59: 15 yr fixed | D59: 5/1 ARM | E59: 30 yr jumbo
A60: 2012-11-28 | B60: 3.52 | C60: 2.86 | D60: 2.74 | E60: 4
A61: 2012-11-21 | B61: 3.53 | C61: 2.86 | D61: 2.7 | E61: 4.01
A62: 2012-11-14 | B62: 3.54 | C62: 2.87 | D62: 2.72 | E62: 4.06
A63: 2012-11-07 | B63: 3.57 | C63: 2.88 | D63: 2.72 | E63: 4.09
A64: 2012-10-31 | B64: 3.57 | C64: 2.89 | D64: 2.72 | E64: 4.11
A65: 2012-10-24 | B65: 3.61 | C65: 2.9 | D65: 2.73 | E65: 4.17
A66: 2012-10-17 | B66: 3.62 | C66: 2.91 | D66: 2.72 | E66: 4.18
A67: 2012-10-10 | B67: 3.59 | C67: 2.88 | D67: 2.68 | E67: 4.19
A68: 2012-10-03 | B68: 3.52 | C68: 2.84 | D68: 2.67 | E68: 4.16
A69: 2012-09-26 | B69: 3.55 | C69: 2.88 | D69: 2.68 | E69: 4.19
A70: 2012-09-19 | B70: 3.7 | C70: 2.95 | D70: 2.69 | E70: 4.32
A71: Add this table to your pageâ¹âºget code
A72: Add to website or blog X
A73: Select All . Press Ctrl + C to copyClose
A74: More On Mortgage Rates:
A75: Find the best mortgage rates
A76: Create a news alert for "mortgages"
A77: Â
A79: Share this story
A81: LinkedIn
A82: Delicious
A83: Reddit
A84: Stumbleupon
A85: Email story
A87: advertisement
A88: Related Links:
A89: National mortgage rates for Nov. 29, 2012
A90: Mortgage rates for Nov. 29, 2012
A91: Will bank modify mortgage on rental home?
A92: Related Articles:
A93: Rate Trend Index
A94: Invest or pay mortgage?
A95: Rates sluggish post-holiday
A97: Bankrate.com's corrections policy
A98: Updated: Nov. 29, 2012
A99: What people are sharing
A101: 1. When to buy an airline ticket
A102: 2. New health reform rules unveiled
A103: 3. 8 illegal interview questions to avoid
A104: 4. Celebrity house for sale: Walt Weiss
A105: 5. No cuts to 401(k)s or IRAs
A106: 6. The fiscal cliff may affect your taxes
A107: 7. Top 10 mistakes by DIYers
A108: 8. 4 ways to make a mortgage payment
A109: 9. What to do with savings bonds?
A110: 10. Jerry Rice's house is for sale
A112: Find a Mortgage Rate
A113: Fixed Rates Mortgage Types
A114: 10 year fixed
A115: 15 year fixed
A116: 20 year fixed
A117: 30 year fixed
A118: 30 year FHA
A119: See all fixed
A120: 30 year FHA refi
A121: 15 year fixed refi
A122: 30 year fixed refi
A123: Adjustable Rates Mortgage Types
A124: 1 year ARM
A125: 3/1 ARM
A126: 5/1 ARM
A127: 7/1 ARM
A128: 10/1 ARM
A129: See all ARMs
A130: 1 yr ARM refi
A131: 3/1 ARM refi
A132: 5/1 ARM refi
A133: Interest Only Mortgage Types
A134: 3/1 ARM (IO)
A135: 5/1 ARM (IO)
A136: 7/1 ARM (IO)
A137: 3/1 ARM (IO) refi
A138: 30 year fixed (IO)
A139: 30 year fixed (IO) refi
A140: See all IOs
A141: Compare Mortgage Rates
A142: Zip code:
A143: Product:
A145: 30 yr fixed average
A146: 0.0341
A147: About our rates
A148: advertisement
A149: About this index
A150: Mortgage Overnight Averages
A151: Product | C151: Rate | D151: +/- | E151: Last week
A152: 30 yr fixed mtg | C152: 0.0341 | E152: 0.0345
A153: 15 yr fixed mtg | C153: 0.0284 | E153: 0.0286
A154: 5/1 ARM | C154: 0.0281 | E154: 0.0278
A155: 30 yr fixed mtg refi | C155: 0.0338 | E155: 0.0341
A156: View rates in your area:
A158: Feeling lost in the mortgage wilderness?
A159: Let Bankrate's Mortgage Analysis be your GPS. This newsletter tracks our exclusive mortgage features, rates and tools. Delivered Thursdays.
A161: advertisement
A162: Bankrate on Facebook
A163: <!--iframe-->
A164: By Polyana da Costa
A165: Mortgages Â»
A166: New rules when dumping your mortgage
A167: Fannie Mae has announced new options for homeowners who want to hand over their keys to be released from their mortgages.
A168: View more Bankrate Blogs Â»
A169: Partner Center
A170: advertisement
A171: Mortgage rates giving you motion sickness?
A172: Let us watch for you. We'll tell you when they hit your target.
A173: Sign up now! It's simple. Â»
A174: RSS icon
A175: Subscribe:RSS Feeds
A176: advertisement
A177: About us
A178: Advertise with Bankrate
A179: Partners
A180: Press Room
A181: Investor Relations
A182: Free Content Center
A183: Contact Us
A184: Sitemap
A185: Topics
A186: Newsletters
A187: Understanding Bankrate's rate averages
A188: Â© 2012 Bankrate, Inc. All Rights Reserved.
A189: Privacy Policy/Your California Privacy Rights
A190: Terms of Use
